[Event "*** SCC Grand Prix: Titled Tuesday Blitz"]
[Site "Chess.com"]
[Date "2020.09.08"]
[Round "8"]
[White "FlamingPhoenix123"]
[Black "Mikheev1976"]
[Result "0-1"]
[WhiteElo "2556"]
[BlackElo "2417"]
[TimeControl "180+1"]
[EndTime "11:36:45 PDT"]
[Termination "Mikheev1976 won on time"]

1. e4 {[%clk 0:01:08]} 1... e5 {[%clk 0:02:58.9]} 2. Nf3 {[%clk 0:01:07.9]} 2...
Nf6 {[%clk 0:02:59.8]} 3. d4 {[%clk 0:01:08.2]} 3... Nxe4 {[%clk 0:02:59]} 4.
dxe5 {[%clk 0:01:07.2]} 4... d5 {[%clk 0:02:58.4]} 5. exd6 {[%clk 0:01:06.7]}
5... Bxd6 {[%clk 0:02:56.8]} 6. Bd3 {[%clk 0:01:06]} 6... Nc5 {[%clk 0:02:55.1]}
7. O-O {[%clk 0:01:03.6]} 7... O-O {[%clk 0:02:55]} 8. Nc3 {[%clk 0:01:03.3]}
8... Nc6 {[%clk 0:02:54.3]} 9. Bg5 {[%clk 0:01:02]} 9... Qd7 {[%clk 0:02:49.7]}
10. Bc4 {[%clk 0:00:56.9]} 10... Qf5 {[%clk 0:02:47.9]} 11. Bh4 {[%clk
0:00:52.2]} 11... Be6 {[%clk 0:02:45.3]} 12. Bxe6 {[%clk 0:00:51.5]} 12... Nxe6
{[%clk 0:02:45.9]} 13. Bg3 {[%clk 0:00:51.8]} 13... Rad8 {[%clk 0:02:42.3]} 14.
Qe2 {[%clk 0:00:43.7]} 14... Ncd4 {[%clk 0:02:38.3]} 15. Nxd4 {[%clk 0:00:43.8]}
15... Nxd4 {[%clk 0:02:39.2]} 16. Qe4 {[%clk 0:00:44.7]} 16... Qxe4 {[%clk
0:02:36.8]} 17. Nxe4 {[%clk 0:00:45.6]} 17... Bxg3 {[%clk 0:02:32.5]} 18. hxg3
{[%clk 0:00:44]} 18... Rfe8 {[%clk 0:02:27]} 19. Nc5 {[%clk 0:00:41.5]} 19... b6
{[%clk 0:02:25.4]} 20. Nb3 {[%clk 0:00:41.6]} 20... Nxc2 {[%clk 0:02:23.4]} 21.
Rac1 {[%clk 0:00:40.6]} 21... Re2 {[%clk 0:02:22.3]} 22. f3 {[%clk 0:00:38.3]}
22... c5 {[%clk 0:02:19.9]} 23. Rf2 {[%clk 0:00:38.5]} 23... Rde8 {[%clk
0:02:12]} 24. Rxc2 {[%clk 0:00:36.5]} 24... Re1+ {[%clk 0:02:07]} 25. Rf1 {[%clk
0:00:36.7]} 25... R1e5 {[%clk 0:02:05.8]} 26. Kf2 {[%clk 0:00:36.8]} 26... a5
{[%clk 0:02:03.9]} 27. a4 {[%clk 0:00:32.9]} 27... Rd8 {[%clk 0:02:01.4]} 28.
Re1 {[%clk 0:00:31.8]} 28... Red5 {[%clk 0:01:59.9]} 29. Ree2 {[%clk 0:00:30.7]}
29... Rd3 {[%clk 0:01:57.9]} 30. Nd2 {[%clk 0:00:30]} 30... g6 {[%clk
0:01:56.5]} 31. Nc4 {[%clk 0:00:30.1]} 31... Rb3 {[%clk 0:01:42.8]} 32. Rc3
{[%clk 0:00:20.3]} 32... Rb4 {[%clk 0:01:42.7]} 33. b3 {[%clk 0:00:20.8]} 33...
Rd1 {[%clk 0:01:41.2]} 34. Rd2 {[%clk 0:00:20.1]} 34... Rxc4 {[%clk 0:01:35.6]}
35. bxc4 {[%clk 0:00:20.4]} 35... Rxd2+ {[%clk 0:01:35.2]} 36. Ke3 {[%clk
0:00:20.8]} 36... Rxg2 {[%clk 0:01:32.8]} 37. Rb3 {[%clk 0:00:21]} 37... Rxg3
{[%clk 0:01:29.6]} 38. Rxb6 {[%clk 0:00:21.9]} 38... Rg2 {[%clk 0:01:26.3]} 39.
Rb5 {[%clk 0:00:21.4]} 39... h5 {[%clk 0:01:24.3]} 40. Rxa5 {[%clk 0:00:21.2]}
40... h4 {[%clk 0:01:24.6]} 41. f4 {[%clk 0:00:15.3]} 41... h3 {[%clk
0:01:18.6]} 42. Kf3 {[%clk 0:00:13.8]} 42... Rc2 {[%clk 0:01:18.5]} 43. Rb5
{[%clk 0:00:09.6]} 43... h2 {[%clk 0:01:17.1]} 44. Rb1 {[%clk 0:00:09.4]} 44...
Rxc4 {[%clk 0:01:16]} 45. Ra1 {[%clk 0:00:06.3]} 45... g5 {[%clk 0:00:52.1]} 46.
a5 {[%clk 0:00:04.5]} 46... Rxf4+ {[%clk 0:00:51.5]} 47. Kg2 {[%clk 0:00:04.6]}
47... Rb4 {[%clk 0:00:49.1]} 48. a6 {[%clk 0:00:04.1]} 48... Rb8 {[%clk
0:00:48.9]} 49. Kxh2 {[%clk 0:00:03.9]} 49... Kg7 {[%clk 0:00:48.1]} 50. Ra5
{[%clk 0:00:04]} 50... Ra8 {[%clk 0:00:47.2]} 51. Rxc5 {[%clk 0:00:02.8]} 51...
Kg6 {[%clk 0:00:46.5]} 0-1

[Event "*** SCC Grand Prix: Titled Tuesday Blitz"]
[Site "Chess.com"]
[Date "2020.09.08"]
[Round "8"]
[White "Sacbutt"]
[Black "ItsCheckM8Mate"]
[Result "0-1"]
[WhiteElo "2217"]
[BlackElo "2324"]
[TimeControl "180+1"]
[EndTime "11:36:46 PDT"]
[Termination "ItsCheckM8Mate won on time"]

1. e4 {[%clk 0:03:00.8]} 1... e5 {[%clk 0:02:57.1]} 2. Nf3 {[%clk 0:03:00.6]}
2... Nc6 {[%clk 0:02:55.3]} 3. Bc4 {[%clk 0:03:00.2]} 3... Nf6 {[%clk
0:02:54.9]} 4. d3 {[%clk 0:03:00.1]} 4... h6 {[%clk 0:02:54.2]} 5. c3 {[%clk
0:02:59.8]} 5... d6 {[%clk 0:02:53.3]} 6. O-O {[%clk 0:02:59.8]} 6... g6 {[%clk
0:02:52]} 7. Nbd2 {[%clk 0:02:58.2]} 7... Bg7 {[%clk 0:02:52.3]} 8. Re1 {[%clk
0:02:58.6]} 8... O-O {[%clk 0:02:52.8]} 9. Bb3 {[%clk 0:02:58.3]} 9... d5 {[%clk
0:02:47.3]} 10. exd5 {[%clk 0:02:57.5]} 10... Nxd5 {[%clk 0:02:46.9]} 11. Nc4
{[%clk 0:02:49.8]} 11... Re8 {[%clk 0:02:43.8]} 12. h3 {[%clk 0:02:45.8]} 12...
Kh7 {[%clk 0:02:41.8]} 13. a3 {[%clk 0:02:32.2]} 13... f5 {[%clk 0:02:39.7]} 14.
Ne3 {[%clk 0:02:25.3]} 14... Nf4 {[%clk 0:02:36]} 15. Bc2 {[%clk 0:02:13.9]}
15... Be6 {[%clk 0:02:28.1]} 16. Kh2 {[%clk 0:02:00.1]} 16... Qf6 {[%clk
0:02:19.3]} 17. g3 {[%clk 0:01:57]} 17... Nxh3 {[%clk 0:02:12.7]} 18. Kxh3
{[%clk 0:01:33.1]} 18... f4+ {[%clk 0:02:12.4]} 19. Kg2 {[%clk 0:01:26.6]} 19...
fxe3 {[%clk 0:02:09.6]} 20. Rxe3 {[%clk 0:01:06.7]} 20... Bg4 {[%clk 0:02:08]}
21. Qe1 {[%clk 0:01:04.6]} 21... Rf8 {[%clk 0:02:02]} 22. Nh2 {[%clk 0:01:02.5]}
22... Be6 {[%clk 0:01:54.1]} 23. f3 {[%clk 0:00:51.2]} 23... Rf7 {[%clk
0:01:34.5]} 24. d4 {[%clk 0:00:48.2]} 24... Bd5 {[%clk 0:01:27.5]} 25. Be4
{[%clk 0:00:36.2]} 25... Bxe4 {[%clk 0:01:24.2]} 26. Rxe4 {[%clk 0:00:32]} 26...
exd4 {[%clk 0:01:24]} 27. Rf4 {[%clk 0:00:26.3]} 27... Qe7 {[%clk 0:01:17.3]}
28. Re4 {[%clk 0:00:11.7]} 28... Qd7 {[%clk 0:01:03.1]} 29. Bf4 {[%clk
0:00:11.4]} 29... dxc3 {[%clk 0:00:49.2]} 30. Rd1 {[%clk 0:00:11.5]} 30... Qf5
{[%clk 0:00:45.9]} 31. bxc3 {[%clk 0:00:08.2]} 31... Raf8 {[%clk 0:00:44.4]} 32.
Qe2 {[%clk 0:00:04]} 32... Bxc3 {[%clk 0:00:40.2]} 33. Ng4 {[%clk 0:00:01.6]}
33... Bg7 {[%clk 0:00:37.3]} 34. Rh1 {[%clk 0:00:01.4]} 34... h5 {[%clk
0:00:34.2]} 35. Ne3 {[%clk 0:00:01.7]} 35... Qa5 {[%clk 0:00:25.6]} 36. Nc4
{[%clk 0:00:01.9]} 36... Qd5 {[%clk 0:00:23.4]} 37. Ne3 {[%clk 0:00:01.8]} 37...
Qc5 {[%clk 0:00:22.4]} 38. Nc4 {[%clk 0:00:01.8]} 38... b5 {[%clk 0:00:19.8]}
39. Ne3 {[%clk 0:00:01.5]} 39... Nd4 {[%clk 0:00:19.5]} 40. Qd3 {[%clk
0:00:01.2]} 40... Nf5 {[%clk 0:00:18.5]} 0-1

[Event "*** SCC Grand Prix: Titled Tuesday Blitz"]
[Site "Chess.com"]
[Date "2020.09.08"]
[Round "8"]
[White "IroniaSudby"]
[Black "Aborigen_came"]
[Result "0-1"]
[WhiteElo "2503"]
[BlackElo "2693"]
[TimeControl "180+1"]
[EndTime "11:36:47 PDT"]
[Termination "Aborigen_came won by resignation"]

1. d4 {[%clk 0:03:00.9]} 1... e6 {[%clk 0:02:57.2]} 2. c4 {[%clk 0:03:00.8]}
2... Bb4+ {[%clk 0:02:55.9]} 3. Bd2 {[%clk 0:02:59.9]} 3... Bxd2+ {[%clk
0:02:48.2]} 4. Qxd2 {[%clk 0:03:00.1]} 4... Nf6 {[%clk 0:02:47.5]} 5. Nc3 {[%clk
0:03:00.2]} 5... O-O {[%clk 0:02:47.6]} 6. g3 {[%clk 0:02:59.3]} 6... d6 {[%clk
0:02:46.4]} 7. Bg2 {[%clk 0:02:59.2]} 7... c6 {[%clk 0:02:43.9]} 8. e3 {[%clk
0:02:59.6]} 8... Qe7 {[%clk 0:02:41.9]} 9. Nge2 {[%clk 0:02:59.7]} 9... Nbd7
{[%clk 0:02:32.3]} 10. O-O {[%clk 0:02:59.3]} 10... Rd8 {[%clk 0:02:30.3]} 11.
b4 {[%clk 0:02:58.2]} 11... Nb6 {[%clk 0:02:28.6]} 12. c5 {[%clk 0:02:52.1]}
12... Nc4 {[%clk 0:02:22.3]} 13. Qc2 {[%clk 0:02:44.5]} 13... d5 {[%clk
0:02:18.7]} 14. a4 {[%clk 0:02:38.9]} 14... e5 {[%clk 0:02:16.8]} 15. e4 {[%clk
0:02:26.7]} 15... exd4 {[%clk 0:02:12.1]} 16. Nxd4 {[%clk 0:02:24.9]} 16... dxe4
{[%clk 0:02:12.2]} 17. Rad1 {[%clk 0:02:03.7]} 17... a5 {[%clk 0:02:10.1]} 18.
Nxe4 {[%clk 0:01:58.9]} 18... Na3 {[%clk 0:01:59.8]} 19. Qb3 {[%clk 0:01:29.1]}
19... Nxe4 {[%clk 0:01:51.2]} 20. Qxa3 {[%clk 0:01:28.5]} 20... axb4 {[%clk
0:01:47.3]} 21. Qxb4 {[%clk 0:01:29.4]} 21... Qxc5 {[%clk 0:01:45.1]} 22. Nxc6
{[%clk 0:00:56.6]} 22... Rxd1 {[%clk 0:01:38.7]} 23. Rxd1 {[%clk 0:00:52.1]}
23... Qxf2+ {[%clk 0:01:29.3]} 24. Kh1 {[%clk 0:00:52.1]} 24... Bg4 {[%clk
0:01:27.6]} 25. Ne7+ {[%clk 0:00:41]} 25... Kh8 {[%clk 0:01:26.8]} 26. Qxb7
{[%clk 0:00:32.1]} 26... Rf8 {[%clk 0:00:33.4]} 27. Rf1 {[%clk 0:00:26.6]} 27...
Nxg3+ {[%clk 0:00:15.2]} 28. hxg3 {[%clk 0:00:24.4]} 28... Qxg3 {[%clk
0:00:16.1]} 29. Qe4 {[%clk 0:00:19.9]} 29... f5 {[%clk 0:00:05.5]} 30. Qf4
{[%clk 0:00:16.6]} 30... Qh4+ {[%clk 0:00:05]} 31. Kg1 {[%clk 0:00:17.2]} 31...
Qxe7 {[%clk 0:00:04.8]} 32. a5 {[%clk 0:00:14.7]} 32... h5 {[%clk 0:00:04.6]}
33. a6 {[%clk 0:00:14.3]} 33... Qa7+ {[%clk 0:00:03.9]} 34. Kh2 {[%clk
0:00:11.9]} 34... Qxa6 {[%clk 0:00:04.8]} 35. Qg5 {[%clk 0:00:12.5]} 35... Qf6
{[%clk 0:00:04.7]} 36. Qf4 {[%clk 0:00:09.3]} 36... Kh7 {[%clk 0:00:04.7]} 37.
Re1 {[%clk 0:00:08.1]} 37... Qg6 {[%clk 0:00:04.1]} 38. Qc7 {[%clk 0:00:05.5]}
38... Rf7 {[%clk 0:00:03.8]} 39. Qd8 {[%clk 0:00:05.2]} 39... Qf6 {[%clk
0:00:03.9]} 40. Re2 {[%clk 0:00:04.2]} 40... Qxd8 {[%clk 0:00:03.6]} 0-1

[Event "*** SCC Grand Prix: Titled Tuesday Blitz"]
[Site "Chess.com"]
[Date "2020.09.08"]
[Round "8"]
[White "indfraeng"]
[Black "TrickyFortem"]
[Result "0-1"]
[WhiteElo "2335"]
[BlackElo "2453"]
[TimeControl "180+1"]
[EndTime "11:36:48 PDT"]
[Termination "TrickyFortem won by resignation"]

1. d4 {[%clk 0:03:00.9]} 1... Nf6 {[%clk 0:02:59.6]} 2. c4 {[%clk 0:03:01.3]}
2... g6 {[%clk 0:03:00]} 3. g3 {[%clk 0:03:01.5]} 3... Bg7 {[%clk 0:03:00.3]} 4.
Bg2 {[%clk 0:03:01.8]} 4... O-O {[%clk 0:03:01]} 5. Nc3 {[%clk 0:03:01.6]} 5...
d6 {[%clk 0:03:01.6]} 6. Nf3 {[%clk 0:03:01.4]} 6... Nbd7 {[%clk 0:03:02]} 7.
O-O {[%clk 0:03:01.1]} 7... e5 {[%clk 0:03:02.7]} 8. e4 {[%clk 0:03:01.1]} 8...
exd4 {[%clk 0:03:03]} 9. Nxd4 {[%clk 0:03:01]} 9... Re8 {[%clk 0:03:03.7]} 10.
h3 {[%clk 0:03:01.5]} 10... a6 {[%clk 0:03:04.1]} 11. Re1 {[%clk 0:02:58.6]}
11... Rb8 {[%clk 0:03:03.3]} 12. Rb1 {[%clk 0:02:56.3]} 12... Ne5 {[%clk
0:03:02.9]} 13. b3 {[%clk 0:02:56.2]} 13... c5 {[%clk 0:03:02.8]} 14. Nc2 {[%clk
0:02:52.8]} 14... Nh5 {[%clk 0:02:53.4]} 15. Bb2 {[%clk 0:02:50.9]} 15... b5
{[%clk 0:02:49.9]} 16. Ne3 {[%clk 0:02:19.4]} 16... bxc4 {[%clk 0:02:33.1]} 17.
bxc4 {[%clk 0:02:20.3]} 17... Be6 {[%clk 0:02:29.6]} 18. Ncd5 {[%clk 0:02:14]}
18... Bxd5 {[%clk 0:02:20.4]} 19. cxd5 {[%clk 0:02:03.7]} 19... Qa5 {[%clk
0:01:58.5]} 20. f4 {[%clk 0:01:57.8]} 20... Rxb2 {[%clk 0:01:49.6]} 21. Rxb2
{[%clk 0:01:51.3]} 21... Nd3 {[%clk 0:01:49.7]} 22. Rbe2 {[%clk 0:01:42.5]}
22... Nxe1 {[%clk 0:01:48.6]} 23. Qxe1 {[%clk 0:01:43.4]} 23... Qxe1+ {[%clk
0:01:47.2]} 24. Rxe1 {[%clk 0:01:44.3]} 24... Nxg3 {[%clk 0:01:47.7]} 25. Nc4
{[%clk 0:01:41.6]} 25... Rd8 {[%clk 0:01:37.9]} 26. e5 {[%clk 0:01:29.8]} 26...
Nh5 {[%clk 0:01:33.1]} 27. e6 {[%clk 0:01:25.3]} 27... Bf6 {[%clk 0:01:24]} 28.
e7 {[%clk 0:01:10]} 28... Re8 {[%clk 0:01:23.6]} 29. Nxd6 {[%clk 0:01:10.5]}
29... Rxe7 {[%clk 0:01:23.6]} 30. Rxe7 {[%clk 0:01:10.9]} 30... Bxe7 {[%clk
0:01:24.5]} 31. Nb7 {[%clk 0:01:10.2]} 31... Nxf4 {[%clk 0:01:21.1]} 32. d6
{[%clk 0:01:10.2]} 32... Bh4 {[%clk 0:01:19.5]} 33. d7 {[%clk 0:00:59.8]} 33...
Ne6 {[%clk 0:01:19.6]} 34. Bf1 {[%clk 0:00:58.2]} 34... Kf8 {[%clk 0:01:14.8]}
35. Bxa6 {[%clk 0:00:57.2]} 35... Be7 {[%clk 0:01:10.7]} 36. a4 {[%clk
0:00:53.6]} 36... Nd8 {[%clk 0:01:10.7]} 37. a5 {[%clk 0:00:47.1]} 37... c4
{[%clk 0:01:09.8]} 38. Bb5 {[%clk 0:00:34.7]} 38... c3 {[%clk 0:01:03.3]} 39.
Bd3 {[%clk 0:00:28.5]} 39... Nxb7 {[%clk 0:01:02.6]} 40. a6 {[%clk 0:00:28.6]}
40... Nd8 {[%clk 0:01:02.5]} 41. Kf1 {[%clk 0:00:27.7]} 41... Bc5 {[%clk
0:01:02.8]} 42. Ke1 {[%clk 0:00:28.6]} 42... Ke7 {[%clk 0:01:02.8]} 43. Bb5
{[%clk 0:00:28]} 43... f5 {[%clk 0:00:53.4]} 44. Kd1 {[%clk 0:00:27.7]} 44... f4
{[%clk 0:00:53.7]} 45. Kc2 {[%clk 0:00:26.9]} 45... Bd4 {[%clk 0:00:54.2]} 46.
Kd3 {[%clk 0:00:27.1]} 46... Ne6 {[%clk 0:00:45.6]} 47. Bc4 {[%clk 0:00:19.1]}
47... f3 {[%clk 0:00:38.8]} 48. Bxe6 {[%clk 0:00:16.2]} 48... f2 {[%clk
0:00:39.1]} 49. Ke2 {[%clk 0:00:11.2]} 49... c2 {[%clk 0:00:39.3]} 50. a7 {[%clk
0:00:04.1]} 50... Bxa7 {[%clk 0:00:38.7]} 51. d8=Q+ {[%clk 0:00:04.3]} 51...
Kxd8 {[%clk 0:00:37.8]} 52. Kd2 {[%clk 0:00:04.1]} 52... f1=Q {[%clk 0:00:36.8]}
53. Kxc2 {[%clk 0:00:05]} 53... Qe2+ {[%clk 0:00:35.4]} 0-1

[Event "*** SCC Grand Prix: Titled Tuesday Blitz"]
[Site "Chess.com"]
[Date "2020.09.08"]
[Round "8"]
[White "Xeniya2005"]
[Black "mmaks007"]
[Result "1-0"]
[WhiteElo "2403"]
[BlackElo "2250"]
[TimeControl "180+1"]
[EndTime "11:36:48 PDT"]
[Termination "Xeniya2005 won by resignation"]

1. e4 {[%clk 0:03:00.9]} 1... g6 {[%clk 0:02:51.4]} 2. d4 {[%clk 0:02:59.7]}
2... Bg7 {[%clk 0:02:51]} 3. Nf3 {[%clk 0:02:56.5]} 3... d6 {[%clk 0:02:50.7]}
4. Bc4 {[%clk 0:02:56.1]} 4... Nf6 {[%clk 0:02:49.6]} 5. Qe2 {[%clk 0:02:52.4]}
5... O-O {[%clk 0:02:38.5]} 6. O-O {[%clk 0:02:50.3]} 6... Bg4 {[%clk
0:02:16.5]} 7. h3 {[%clk 0:02:47]} 7... Bxf3 {[%clk 0:02:15.4]} 8. Qxf3 {[%clk
0:02:45.8]} 8... e5 {[%clk 0:02:15.7]} 9. d5 {[%clk 0:02:38.2]} 9... Nbd7 {[%clk
0:02:09.1]} 10. Nc3 {[%clk 0:02:36.9]} 10... Nh5 {[%clk 0:02:05.8]} 11. Qe2
{[%clk 0:02:30.8]} 11... a6 {[%clk 0:02:03.9]} 12. a4 {[%clk 0:02:27.3]} 12...
Nf4 {[%clk 0:01:58.7]} 13. Bxf4 {[%clk 0:02:26]} 13... exf4 {[%clk 0:01:59.6]}
14. Rfe1 {[%clk 0:02:20.8]} 14... Ne5 {[%clk 0:01:59.2]} 15. f3 {[%clk
0:02:15.7]} 15... b6 {[%clk 0:01:44.1]} 16. Bxa6 {[%clk 0:02:07.7]} 16... g5
{[%clk 0:01:38.5]} 17. Bb5 {[%clk 0:02:04.2]} 17... h5 {[%clk 0:01:36.1]} 18.
Qf2 {[%clk 0:01:48.1]} 18... Bh6 {[%clk 0:01:13.2]} 19. Ne2 {[%clk 0:01:42.7]}
19... Qf6 {[%clk 0:00:37.6]} 20. Rf1 {[%clk 0:01:27.8]} 20... Ng6 {[%clk
0:00:29.6]} 21. Bd7 {[%clk 0:01:18.5]} 21... Qxb2 {[%clk 0:00:24.6]} 22. Nd4
{[%clk 0:01:14.2]} 22... Ne5 {[%clk 0:00:19.8]} 23. Rab1 {[%clk 0:01:02.4]}
23... Qc3 {[%clk 0:00:18.9]} 24. Rb3 {[%clk 0:01:01.1]} 24... Qc5 {[%clk
0:00:15.6]} 25. Rfb1 {[%clk 0:00:52.8]} 25... Bg7 {[%clk 0:00:14.9]} 26. Rb5
{[%clk 0:00:45]} 26... Qxd4 {[%clk 0:00:14.9]} 27. Qxd4 {[%clk 0:00:42.8]} 27...
Nxf3+ {[%clk 0:00:15.1]} 28. gxf3 {[%clk 0:00:43.2]} 28... Bxd4+ {[%clk
0:00:16]} 29. Kg2 {[%clk 0:00:43.1]} 29... Kg7 {[%clk 0:00:16]} 30. R5b3 {[%clk
0:00:41.1]} 30... Rxa4 {[%clk 0:00:14.7]} 31. Bxa4 {[%clk 0:00:38.8]} 31... Bc5
{[%clk 0:00:13.8]} 32. Bc6 {[%clk 0:00:37.5]} 32... Kf6 {[%clk 0:00:13.9]} 33.
Ra1 {[%clk 0:00:36.8]} 33... Ke5 {[%clk 0:00:13.1]} 34. Ra7 {[%clk 0:00:34.4]}
34... g4 {[%clk 0:00:10.7]} 35. hxg4 {[%clk 0:00:33.3]} 35... hxg4 {[%clk
0:00:11.6]} 36. fxg4 {[%clk 0:00:32.1]} 36... Rg8 {[%clk 0:00:11]} 37. Bd7
{[%clk 0:00:22.8]} 37... Rg6 {[%clk 0:00:05.6]} 38. Bf5 {[%clk 0:00:21.6]} 38...
Rh6 {[%clk 0:00:05.1]} 39. Rh3 {[%clk 0:00:20.6]} 39... Rxh3 {[%clk 0:00:03.4]}
40. Kxh3 {[%clk 0:00:20.1]} 40... f3 {[%clk 0:00:04.3]} 41. Kg3 {[%clk
0:00:20.4]} 41... f2 {[%clk 0:00:03.9]} 42. Kg2 {[%clk 0:00:20.5]} 42... Kf4
{[%clk 0:00:03.3]} 43. Kf1 {[%clk 0:00:20.5]} 1-0

[Event "*** SCC Grand Prix: Titled Tuesday Blitz"]
[Site "Chess.com"]
[Date "2020.09.08"]
[Round "8"]
[White "Kazmin_Dmitrij"]
[Black "HrvojeZagreb"]
[Result "0-1"]
[WhiteElo "2269"]
[BlackElo "2173"]
[TimeControl "180+1"]
[EndTime "11:36:48 PDT"]
[Termination "HrvojeZagreb won on time"]

1. e4 {[%clk 0:03:00.9]} 1... d6 {[%clk 0:02:59.3]} 2. d4 {[%clk 0:02:59.5]}
2... Nf6 {[%clk 0:02:59.3]} 3. Nc3 {[%clk 0:02:58.4]} 3... Nbd7 {[%clk
0:02:59.4]} 4. f4 {[%clk 0:02:33.5]} 4... e5 {[%clk 0:02:59.1]} 5. Bc4 {[%clk
0:02:27.9]} 5... exd4 {[%clk 0:02:54.9]} 6. Qxd4 {[%clk 0:02:27.1]} 6... g6
{[%clk 0:02:39]} 7. e5 {[%clk 0:02:13.6]} 7... dxe5 {[%clk 0:02:33.6]} 8. fxe5
{[%clk 0:02:11.1]} 8... Qe7 {[%clk 0:02:33.6]} 9. Nf3 {[%clk 0:02:02]} 9... Bg7
{[%clk 0:02:01.3]} 10. Bg5 {[%clk 0:01:54.3]} 10... h6 {[%clk 0:02:01.1]} 11.
Nd5 {[%clk 0:01:44.5]} 11... Nxd5 {[%clk 0:01:02.9]} 12. Bxe7 {[%clk 0:01:42.5]}
12... Nxe7 {[%clk 0:01:03.8]} 13. Bb5 {[%clk 0:00:58.2]} 13... c6 {[%clk
0:01:02]} 14. Bc4 {[%clk 0:00:51.3]} 14... O-O {[%clk 0:01:01.1]} 15. O-O-O
{[%clk 0:00:51.2]} 15... Nf5 {[%clk 0:00:58.9]} 16. Qc3 {[%clk 0:00:47.5]} 16...
b5 {[%clk 0:00:50]} 17. Bd3 {[%clk 0:00:43.8]} 17... Ne3 {[%clk 0:00:46.2]} 18.
Rd2 {[%clk 0:00:36.5]} 18... Nd5 {[%clk 0:00:41.5]} 19. Qd4 {[%clk 0:00:33.8]}
19... Re8 {[%clk 0:00:29.6]} 20. Re1 {[%clk 0:00:31.8]} 20... Nf8 {[%clk
0:00:27.5]} 21. c4 {[%clk 0:00:27.2]} 21... Ne6 {[%clk 0:00:26.2]} 22. Qh4
{[%clk 0:00:22.9]} 22... Ndf4 {[%clk 0:00:22.4]} 23. Be4 {[%clk 0:00:16.2]}
23... g5 {[%clk 0:00:14.8]} 24. Qf2 {[%clk 0:00:15.7]} 24... Nc5 {[%clk
0:00:12.8]} 25. Bxc6 {[%clk 0:00:13.3]} 25... Ncd3+ {[%clk 0:00:12.9]} 26. Rxd3
{[%clk 0:00:12]} 26... Nxd3+ {[%clk 0:00:13.8]} 27. Kc2 {[%clk 0:00:09.9]} 27...
Nxf2 {[%clk 0:00:14.7]} 28. Bxe8 {[%clk 0:00:07.2]} 28... Bf5+ {[%clk
0:00:15.6]} 29. Kc3 {[%clk 0:00:06.8]} 29... Rxe8 {[%clk 0:00:14.3]} 30. Kd4
{[%clk 0:00:05.9]} 30... g4 {[%clk 0:00:12.4]} 31. cxb5 {[%clk 0:00:04.8]} 31...
gxf3 {[%clk 0:00:12]} 32. gxf3 {[%clk 0:00:05.2]} 32... Rxe5 {[%clk 0:00:11.8]}
33. Rxe5 {[%clk 0:00:04.5]} 33... Nd3 {[%clk 0:00:12.7]} 34. f4 {[%clk
0:00:02.7]} 34... Nxe5 {[%clk 0:00:13.6]} 35. fxe5 {[%clk 0:00:02.6]} 35... Bc8
{[%clk 0:00:13.9]} 36. a4 {[%clk 0:00:02.5]} 36... h5 {[%clk 0:00:12.9]} 37. b4
{[%clk 0:00:02.5]} 37... Bf8 {[%clk 0:00:11.5]} 38. Kc4 {[%clk 0:00:01.9]} 38...
Be6+ {[%clk 0:00:10.8]} 39. Kd4 {[%clk 0:00:01.6]} 39... Bxb4 {[%clk 0:00:10.2]}
40. a5 {[%clk 0:00:01.6]} 40... Bxa5 {[%clk 0:00:10.2]} 0-1

[Event "*** SCC Grand Prix: Titled Tuesday Blitz"]
[Site "Chess.com"]
[Date "2020.09.08"]
[Round "8"]
[White "novocane"]
[Black "Euge_chess"]
[Result "1-0"]
[WhiteElo "2303"]
[BlackElo "2120"]
[TimeControl "180+1"]
[EndTime "11:36:51 PDT"]
[Termination "novocane won on time"]

1. d4 {[%clk 0:03:00.8]} 1... Nf6 {[%clk 0:02:59.2]} 2. c4 {[%clk 0:02:58.9]}
2... c5 {[%clk 0:02:59.2]} 3. d5 {[%clk 0:02:58.5]} 3... e6 {[%clk 0:02:59.5]}
4. Nc3 {[%clk 0:02:58.3]} 4... exd5 {[%clk 0:02:59.7]} 5. cxd5 {[%clk
0:02:59.2]} 5... d6 {[%clk 0:02:59.9]} 6. e4 {[%clk 0:02:58.5]} 6... g6 {[%clk
0:03:00.2]} 7. f3 {[%clk 0:02:58.1]} 7... Bg7 {[%clk 0:03:00.1]} 8. Bg5 {[%clk
0:02:57.3]} 8... O-O {[%clk 0:02:58.6]} 9. Qd2 {[%clk 0:02:55.1]} 9... Nbd7
{[%clk 0:02:37.6]} 10. Nh3 {[%clk 0:02:54.4]} 10... a6 {[%clk 0:02:29.4]} 11. a4
{[%clk 0:02:53.5]} 11... b6 {[%clk 0:02:28.9]} 12. Be2 {[%clk 0:02:53.1]} 12...
Rb8 {[%clk 0:02:27.2]} 13. O-O {[%clk 0:02:51.9]} 13... Qc7 {[%clk 0:02:20.2]}
14. Rac1 {[%clk 0:02:44.7]} 14... Re8 {[%clk 0:01:51.6]} 15. Nf2 {[%clk
0:02:38.7]} 15... Ne5 {[%clk 0:01:48.2]} 16. h3 {[%clk 0:02:35.9]} 16... h5
{[%clk 0:01:36]} 17. f4 {[%clk 0:02:27.9]} 17... Ned7 {[%clk 0:01:34]} 18. e5
{[%clk 0:02:12.1]} 18... dxe5 {[%clk 0:01:27]} 19. f5 {[%clk 0:02:12.1]} 19...
e4 {[%clk 0:01:13.8]} 20. fxg6 {[%clk 0:02:07.2]} 20... fxg6 {[%clk 0:01:13.2]}
21. d6 {[%clk 0:01:52.3]} 21... Qa7 {[%clk 0:01:07.6]} 22. Nfxe4 {[%clk
0:01:42]} 22... Nxe4 {[%clk 0:00:56.2]} 23. Nxe4 {[%clk 0:00:58.2]} 23... Bb7
{[%clk 0:00:54.5]} 24. Nf6+ {[%clk 0:00:41]} 24... Nxf6 {[%clk 0:00:46.2]} 25.
Bxf6 {[%clk 0:00:41.9]} 25... Bc6 {[%clk 0:00:42.2]} 26. Bxg7 {[%clk 0:00:28.2]}
26... Qxg7 {[%clk 0:00:40.9]} 27. Bc4+ {[%clk 0:00:28.1]} 27... Kh8 {[%clk
0:00:36.5]} 28. Rf7 {[%clk 0:00:27.8]} 28... Qd4+ {[%clk 0:00:32.7]} 29. Qxd4+
{[%clk 0:00:23]} 29... cxd4 {[%clk 0:00:32.6]} 30. Bxa6 {[%clk 0:00:18.2]} 30...
Bd5 {[%clk 0:00:32]} 31. Re7 {[%clk 0:00:14]} 31... Rxe7 {[%clk 0:00:12.7]} 32.
dxe7 {[%clk 0:00:14.9]} 32... Kg7 {[%clk 0:00:12.6]} 33. Rc7 {[%clk 0:00:13.2]}
33... Bf7 {[%clk 0:00:10.9]} 34. Bb5 {[%clk 0:00:12.1]} 34... d3 {[%clk
0:00:09.6]} 35. e8=Q {[%clk 0:00:10.8]} 35... Rxe8 {[%clk 0:00:08.2]} 36. Bxe8
{[%clk 0:00:10.6]} 36... d2 {[%clk 0:00:06.9]} 37. Rxf7+ {[%clk 0:00:10.5]} 1-0